[Event "Late-Titled-Tuesday-Blitz-February-06-2024"]
[Site "Chess.com"]
[Date "2024.02.06"]
[Round "7"]
[White "ccccvhhhj"]
[Black "grzechu96"]
[Result "0-1"]
[WhiteElo "2475"]
[BlackElo "2747"]
[TimeControl "180+1"]
[EndTime "15:16:28 PST"]
[Termination "grzechu96 won on time"]

1. e4 {[%clk 0:03:00.9]} 1... c5 {[%clk 0:02:59.8]} 2. Nf3 {[%clk 0:03:01.3]}
2... d6 {[%clk 0:03:00.2]} 3. d4 {[%clk 0:03:01.9]} 3... cxd4 {[%clk 0:03:01.1]}
4. Nxd4 {[%clk 0:03:02.7]} 4... a6 {[%clk 0:03:01.5]} 5. Nc3 {[%clk 0:03:03.4]}
5... e6 {[%clk 0:03:01.8]} 6. Be2 {[%clk 0:03:01.6]} 6... b5 {[%clk 0:03:01.5]}
7. O-O {[%clk 0:03:01.5]} 7... Bb7 {[%clk 0:03:01.9]} 8. a3 {[%clk 0:02:59.3]}
8... Nd7 {[%clk 0:03:01.9]} 9. f4 {[%clk 0:02:58.6]} 9... Ngf6 {[%clk 0:03:00]}
10. Bf3 {[%clk 0:02:56.6]} 10... Qc7 {[%clk 0:02:52.9]} 11. Kh1 {[%clk
0:02:55.6]} 11... Be7 {[%clk 0:02:53]} 12. Qe1 {[%clk 0:02:49.1]} 12... Rc8
{[%clk 0:02:51.2]} 13. Qg3 {[%clk 0:02:44.7]} 13... h5 {[%clk 0:02:42.3]} 14. h3
{[%clk 0:01:25.7]} 14... h4 {[%clk 0:02:39.9]} 15. Qf2 {[%clk 0:01:25.7]} 15...
Nh5 {[%clk 0:02:33.1]} 16. Bxh5 {[%clk 0:01:20.3]} 16... Rxh5 {[%clk 0:02:34]}
17. Be3 {[%clk 0:01:13.2]} 17... Nf6 {[%clk 0:02:29]} 18. Qf3 {[%clk 0:01:11.3]}
18... Qb8 {[%clk 0:02:07.7]} 19. Rae1 {[%clk 0:01:09.3]} 19... Rxc3 {[%clk
0:02:05.1]} 20. bxc3 {[%clk 0:01:06.7]} 20... Nxe4 {[%clk 0:02:05.6]} 21. Qd1
{[%clk 0:00:50.1]} 21... Ng3+ {[%clk 0:02:02.7]} 22. Kg1 {[%clk 0:00:48.9]}
22... g6 {[%clk 0:01:59.3]} 23. Rf2 {[%clk 0:00:47.1]} 23... Qc7 {[%clk
0:01:57.3]} 24. Qd3 {[%clk 0:00:26.2]} 24... Be4 {[%clk 0:01:55.6]} 25. Qd2
{[%clk 0:00:25.7]} 25... Bd5 {[%clk 0:01:44.5]} 26. f5 {[%clk 0:00:14.1]} 26...
Ne4 {[%clk 0:01:42.5]} 27. Qe2 {[%clk 0:00:13.8]} 27... Nxf2 {[%clk 0:01:35.9]}
28. fxg6 {[%clk 0:00:14.1]} 28... fxg6 {[%clk 0:01:34.8]} 29. Bxf2 {[%clk
0:00:12.6]} 29... e5 {[%clk 0:01:34.6]} 30. Qg4 {[%clk 0:00:07.8]} 30... Rg5
{[%clk 0:01:31.6]} 31. Qxh4 {[%clk 0:00:06.3]} 31... Rxg2+ {[%clk 0:01:31.6]}
32. Kf1 {[%clk 0:00:06.1]} 32... Qc4+ {[%clk 0:01:28.1]} 33. Re2 {[%clk
0:00:05.8]} 33... Bxh4 {[%clk 0:01:26.2]} 34. Bxh4 {[%clk 0:00:04.5]} 34... Rxe2
{[%clk 0:01:23.3]} 0-1

[Event "Late-Titled-Tuesday-Blitz-February-06-2024"]
[Site "Chess.com"]
[Date "2024.02.06"]
[Round "7"]
[White "Hui_Li_Macau"]
[Black "StellarChess"]
[Result "0-1"]
[WhiteElo "2369"]
[BlackElo "2567"]
[TimeControl "180+1"]
[EndTime "15:16:29 PST"]
[Termination "StellarChess won by resignation"]

1. e4 {[%clk 0:03:00.9]} 1... a6 {[%clk 0:02:54.1]} 2. d4 {[%clk 0:03:00]} 2...
c6 {[%clk 0:02:54]} 3. Nf3 {[%clk 0:02:56]} 3... d5 {[%clk 0:02:54.3]} 4. Nc3
{[%clk 0:02:53.3]} 4... dxe4 {[%clk 0:02:54.3]} 5. Nxe4 {[%clk 0:02:53.4]} 5...
Nf6 {[%clk 0:02:55.2]} 6. Nxf6+ {[%clk 0:02:53.4]} 6... exf6 {[%clk 0:02:56.1]}
7. Bd3 {[%clk 0:02:50.2]} 7... Bd6 {[%clk 0:02:56.1]} 8. O-O {[%clk 0:02:46.8]}
8... O-O {[%clk 0:02:57]} 9. h3 {[%clk 0:02:47]} 9... Re8 {[%clk 0:02:54.8]} 10.
c3 {[%clk 0:02:44.7]} 10... Nd7 {[%clk 0:02:55.1]} 11. Qc2 {[%clk 0:02:43.5]}
11... Nf8 {[%clk 0:02:55.4]} 12. Be3 {[%clk 0:02:39.7]} 12... Be6 {[%clk
0:02:55.9]} 13. Rfe1 {[%clk 0:02:39.3]} 13... Qd7 {[%clk 0:02:56.4]} 14. Qd2
{[%clk 0:02:15.3]} 14... Ng6 {[%clk 0:02:43.5]} 15. Bxg6 {[%clk 0:02:07.9]}
15... hxg6 {[%clk 0:02:40.4]} 16. Bf4 {[%clk 0:02:06.5]} 16... Bd5 {[%clk
0:02:36.9]} 17. Nh2 {[%clk 0:01:43]} 17... Rxe1+ {[%clk 0:02:33]} 18. Rxe1
{[%clk 0:01:40]} 18... Bxa2 {[%clk 0:02:30.9]} 19. Ng4 {[%clk 0:01:20.8]} 19...
Be6 {[%clk 0:02:05.2]} 20. Bxd6 {[%clk 0:01:06.5]} 20... Qxd6 {[%clk 0:02:06.1]}
21. b4 {[%clk 0:01:00.5]} 21... a5 {[%clk 0:02:02.4]} 22. bxa5 {[%clk
0:00:58.7]} 22... Rxa5 {[%clk 0:02:01.9]} 23. Qb2 {[%clk 0:00:55.2]} 23... b5
{[%clk 0:01:44.9]} 24. Ne3 {[%clk 0:00:55.1]} 24... Ra2 {[%clk 0:01:44.7]} 25.
Qb1 {[%clk 0:00:45.9]} 25... Qf4 {[%clk 0:01:27.7]} 26. Nc2 {[%clk 0:00:20.6]}
26... Qd2 {[%clk 0:01:16.2]} 27. Rxe6 {[%clk 0:00:14.6]} 27... Rxc2 {[%clk
0:01:14.9]} 28. Re8+ {[%clk 0:00:13]} 28... Kh7 {[%clk 0:01:14.1]} 29. Qe1
{[%clk 0:00:05.3]} 29... Rc1 {[%clk 0:01:13.4]} 0-1

[Event "Late-Titled-Tuesday-Blitz-February-06-2024"]
[Site "Chess.com"]
[Date "2024.02.06"]
[Round "7"]
[White "delqate"]
[Black "shirovin"]
[Result "1-0"]
[WhiteElo "2358"]
[BlackElo "2095"]
[TimeControl "180+1"]
[EndTime "15:16:32 PST"]
[Termination "delqate won on time"]

1. d4 {[%clk 0:03:00.9]} 1... Nf6 {[%clk 0:02:55.9]} 2. Bf4 {[%clk 0:03:01.1]}
2... g6 {[%clk 0:02:53.6]} 3. Nc3 {[%clk 0:03:00.6]} 3... d5 {[%clk 0:02:52.9]}
4. Qd2 {[%clk 0:02:59.7]} 4... Bg7 {[%clk 0:02:35.4]} 5. O-O-O {[%clk
0:02:58.5]} 5... O-O {[%clk 0:02:34.3]} 6. h4 {[%clk 0:02:56.6]} 6... h5 {[%clk
0:02:33]} 7. f3 {[%clk 0:02:49.8]} 7... Nbd7 {[%clk 0:02:29.9]} 8. g4 {[%clk
0:02:44.7]} 8... c6 {[%clk 0:02:16.3]} 9. Bg5 {[%clk 0:02:29.6]} 9... b5 {[%clk
0:02:14.5]} 10. e3 {[%clk 0:02:23.3]} 10... b4 {[%clk 0:02:00.6]} 11. Na4 {[%clk
0:02:22.1]} 11... Qa5 {[%clk 0:01:47.1]} 12. b3 {[%clk 0:02:21.3]} 12... Nb6
{[%clk 0:01:33.7]} 13. a3 {[%clk 0:02:04]} 13... Nxa4 {[%clk 0:01:22.9]} 14.
axb4 {[%clk 0:02:02.5]} 14... Qb6 {[%clk 0:01:03.7]} 15. bxa4 {[%clk 0:01:52.9]}
15... a5 {[%clk 0:00:53.7]} 16. b5 {[%clk 0:01:38.7]} 16... Bd7 {[%clk
0:00:48.4]} 17. Bxf6 {[%clk 0:01:24.2]} 17... Bxf6 {[%clk 0:00:38.9]} 18. gxh5
{[%clk 0:01:23.9]} 18... cxb5 {[%clk 0:00:37.6]} 19. hxg6 {[%clk 0:01:03.8]}
19... bxa4 {[%clk 0:00:29.6]} 20. Qg2 {[%clk 0:00:59]} 20... fxg6 {[%clk
0:00:18.8]} 21. Qxg6+ {[%clk 0:00:51.9]} 21... Bg7 {[%clk 0:00:19.2]} 22. Qxb6
{[%clk 0:00:51.3]} 1-0

[Event "Late-Titled-Tuesday-Blitz-February-06-2024"]
[Site "Chess.com"]
[Date "2024.02.06"]
[Round "7"]
[White "stepanosinovsky"]
[Black "mjelcic"]
[Result "1-0"]
[WhiteElo "2379"]
[BlackElo "2206"]
[TimeControl "180+1"]
[EndTime "15:16:32 PST"]
[Termination "stepanosinovsky won by resignation"]

1. e4 {[%clk 0:02:55.6]} 1... g6 {[%clk 0:02:59.7]} 2. d4 {[%clk 0:02:52.8]}
2... Bg7 {[%clk 0:02:59.4]} 3. Nc3 {[%clk 0:02:53.7]} 3... d6 {[%clk 0:02:59.2]}
4. Be3 {[%clk 0:02:53.8]} 4... Nf6 {[%clk 0:02:57.9]} 5. f3 {[%clk 0:02:53]}
5... O-O {[%clk 0:02:56.7]} 6. Qd2 {[%clk 0:02:52.9]} 6... c6 {[%clk 0:02:57]}
7. h4 {[%clk 0:02:50.7]} 7... e5 {[%clk 0:02:56.8]} 8. Nge2 {[%clk 0:02:48.7]}
8... Nbd7 {[%clk 0:02:52.1]} 9. O-O-O {[%clk 0:02:48]} 9... Qc7 {[%clk
0:02:51.1]} 10. g4 {[%clk 0:02:37]} 10... h5 {[%clk 0:02:50.7]} 11. Bh6 {[%clk
0:02:28.1]} 11... Kh7 {[%clk 0:02:48.6]} 12. Bxg7 {[%clk 0:02:20.8]} 12... Kxg7
{[%clk 0:02:49.5]} 13. Ng3 {[%clk 0:02:18]} 13... Rh8 {[%clk 0:02:47.4]} 14. g5
{[%clk 0:01:42.8]} 14... Nh7 {[%clk 0:02:44.8]} 15. Bc4 {[%clk 0:01:33.4]} 15...
Nb6 {[%clk 0:02:41.6]} 16. Bb3 {[%clk 0:01:33.6]} 16... Re8 {[%clk 0:02:38.6]}
17. f4 {[%clk 0:01:31.2]} 17... Nf8 {[%clk 0:02:23.7]} 18. fxe5 {[%clk
0:01:25.2]} 18... dxe5 {[%clk 0:02:24.6]} 19. Rhf1 {[%clk 0:01:24.8]} 19... Be6
{[%clk 0:02:23.5]} 20. d5 {[%clk 0:01:24.7]} 20... cxd5 {[%clk 0:02:23.1]} 21.
exd5 {[%clk 0:01:25.6]} 21... Bg4 {[%clk 0:02:22.4]} 22. d6 {[%clk 0:01:25.6]}
22... Nc4 {[%clk 0:02:12]} 23. dxc7 {[%clk 0:01:21.1]} 23... Nxd2 {[%clk
0:02:11.8]} 24. Rxf7+ {[%clk 0:01:20.6]} 24... Kh8 {[%clk 0:02:09.1]} 25. Rxd2
{[%clk 0:01:18.7]} 25... Ne6 {[%clk 0:02:05.5]} 26. Rdd7 {[%clk 0:01:15.1]}
26... Nf8 {[%clk 0:01:55.9]} 27. Nge4 {[%clk 0:01:06.3]} 27... Nxd7 {[%clk
0:01:52.5]} 28. Nd6 {[%clk 0:01:00.4]} 28... Nc5 {[%clk 0:01:38.1]} 29. Nxe8
{[%clk 0:00:58.2]} 29... Rxe8 {[%clk 0:01:38.5]} 30. Nd5 {[%clk 0:00:58]} 30...
Be6 {[%clk 0:01:33.4]} 31. Re7 {[%clk 0:00:50.8]} 31... Rc8 {[%clk 0:01:22.7]}
32. Nf6 {[%clk 0:00:47]} 32... Nxb3+ {[%clk 0:01:15.5]} 33. axb3 {[%clk
0:00:44.8]} 33... Bg8 {[%clk 0:01:15.5]} 34. Kd2 {[%clk 0:00:42.8]} 34... b5
{[%clk 0:01:11.6]} 35. b4 {[%clk 0:00:42.3]} 35... a6 {[%clk 0:01:11.5]} 36. Ke3
{[%clk 0:00:41.9]} 36... Rf8 {[%clk 0:01:10.9]} 37. Rd7 {[%clk 0:00:36.6]} 37...
Rc8 {[%clk 0:01:10.8]} 38. c3 {[%clk 0:00:35.8]} 38... a5 {[%clk 0:01:06.7]} 39.
bxa5 {[%clk 0:00:35.1]} 39... Ra8 {[%clk 0:01:06.6]} 40. Rd8 {[%clk 0:00:33.4]}
1-0

[Event "Late-Titled-Tuesday-Blitz-February-06-2024"]
[Site "Chess.com"]
[Date "2024.02.06"]
[Round "7"]
[White "Veleamater"]
[Black "xakevicius91"]
[Result "0-1"]
[WhiteElo "2328"]
[BlackElo "2576"]
[TimeControl "180+1"]
[EndTime "15:16:36 PST"]
[Termination "xakevicius91 won by resignation"]

1. g3 {[%clk 0:03:00.9]} 1... d5 {[%clk 0:02:59]} 2. Bg2 {[%clk 0:03:00.8]} 2...
Nf6 {[%clk 0:02:56.9]} 3. d3 {[%clk 0:03:01.4]} 3... c6 {[%clk 0:02:57.1]} 4.
Nf3 {[%clk 0:03:02]} 4... Bg4 {[%clk 0:02:57.3]} 5. O-O {[%clk 0:03:02.9]} 5...
Nbd7 {[%clk 0:02:57.5]} 6. h3 {[%clk 0:03:03.6]} 6... Bxf3 {[%clk 0:02:56.5]} 7.
Bxf3 {[%clk 0:03:03.3]} 7... e5 {[%clk 0:02:57.1]} 8. Bg2 {[%clk 0:03:04.2]}
8... Bd6 {[%clk 0:02:56.8]} 9. Nc3 {[%clk 0:03:04.8]} 9... Qe7 {[%clk 0:02:57]}
10. e4 {[%clk 0:03:05.5]} 10... d4 {[%clk 0:02:57.5]} 11. Ne2 {[%clk 0:03:05.3]}
11... c5 {[%clk 0:02:58.4]} 12. f4 {[%clk 0:03:05.9]} 12... h5 {[%clk
0:02:57.8]} 13. Bd2 {[%clk 0:03:06.1]} 13... Rg8 {[%clk 0:02:47.3]} 14. a4
{[%clk 0:03:04.5]} 14... O-O-O {[%clk 0:02:42.3]} 15. a5 {[%clk 0:03:04.7]}
15... Kb8 {[%clk 0:02:42.3]} 16. a6 {[%clk 0:03:04.8]} 16... b6 {[%clk
0:02:42.2]} 17. c3 {[%clk 0:03:05.2]} 17... h4 {[%clk 0:02:33.4]} 18. g4 {[%clk
0:03:04.9]} 18... exf4 {[%clk 0:02:33.8]} 19. Bxf4 {[%clk 0:03:01.7]} 19... Ne5
{[%clk 0:02:33.6]} 20. cxd4 {[%clk 0:02:59.5]} 20... cxd4 {[%clk 0:02:33.7]} 21.
Kh1 {[%clk 0:02:57.7]} 21... Bc5 {[%clk 0:02:32.8]} 22. Nc1 {[%clk 0:02:48.9]}
22... Ka8 {[%clk 0:02:26.4]} 23. g5 {[%clk 0:02:45.5]} 23... Nfd7 {[%clk
0:02:25.1]} 24. Qa4 {[%clk 0:02:42]} 24... f6 {[%clk 0:02:23.6]} 25. g6 {[%clk
0:02:33.1]} 25... Qe6 {[%clk 0:02:17.2]} 26. Nb3 {[%clk 0:02:28.5]} 26... Rc8
{[%clk 0:02:05.6]} 27. Bxe5 {[%clk 0:02:14.3]} 27... Nxe5 {[%clk 0:02:01.8]} 28.
Rf5 {[%clk 0:02:12.8]} 28... Rgd8 {[%clk 0:01:50.5]} 29. Raf1 {[%clk 0:02:11.8]}
29... Qc6 {[%clk 0:01:44.9]} 30. Nxc5 {[%clk 0:02:07.8]} 30... Qxc5 {[%clk
0:01:43.5]} 31. Rh5 {[%clk 0:01:57.6]} 31... Qc2 {[%clk 0:01:40.7]} 32. Qb5
{[%clk 0:01:52.8]} 32... Rc5 {[%clk 0:01:38.7]} 33. Qb4 {[%clk 0:01:52.3]} 33...
Qxd3 {[%clk 0:01:35.4]} 34. Rh7 {[%clk 0:01:46.7]} 34... Rc7 {[%clk 0:01:29.6]}
35. Rxh4 {[%clk 0:01:44.1]} 35... Qxa6 {[%clk 0:01:27.1]} 36. Rd1 {[%clk
0:01:42.6]} 36... Qc4 {[%clk 0:01:26.1]} 37. Qd2 {[%clk 0:01:39.5]} 37... Qc2
{[%clk 0:01:25.5]} 38. Qe1 {[%clk 0:01:37.8]} 38... d3 {[%clk 0:01:25]} 39. Rh7
{[%clk 0:01:24.2]} 39... d2 {[%clk 0:01:22.8]} 40. Qf1 {[%clk 0:01:22.8]} 40...
Qd3 {[%clk 0:01:22]} 41. Qg1 {[%clk 0:01:13]} 41... Qd4 {[%clk 0:01:13.9]} 42.
Qf1 {[%clk 0:01:09.2]} 42... Qc4 {[%clk 0:01:10.1]} 43. Qg1 {[%clk 0:01:03.4]}
43... Qc1 {[%clk 0:01:10]} 44. Rxg7 {[%clk 0:00:40.4]} 44... Qxd1 {[%clk
0:01:08.3]} 45. Qxd1 {[%clk 0:00:39.6]} 45... Rc1 {[%clk 0:01:07.6]} 46. Bf3
{[%clk 0:00:39.2]} 46... Nxf3 {[%clk 0:01:05.1]} 47. Kg2 {[%clk 0:00:39.6]} 0-1

[Event "Late-Titled-Tuesday-Blitz-February-06-2024"]
[Site "Chess.com"]
[Date "2024.02.06"]
[Round "7"]
[White "MikaelyanArman"]
[Black "GHANDEEVAM2003"]
[Result "0-1"]
[WhiteElo "2858"]
[BlackElo "3041"]
[TimeControl "180+1"]
[EndTime "15:16:38 PST"]
[Termination "GHANDEEVAM2003 won by resignation"]

1. d4 {[%clk 0:03:00.9]} 1... Nf6 {[%clk 0:02:57.4]} 2. c4 {[%clk 0:03:01.1]}
2... e6 {[%clk 0:02:57.2]} 3. Nf3 {[%clk 0:03:01]} 3... b6 {[%clk 0:02:57.4]} 4.
g3 {[%clk 0:03:00]} 4... Ba6 {[%clk 0:02:56.3]} 5. b3 {[%clk 0:02:59.1]} 5... d5
{[%clk 0:02:52.9]} 6. cxd5 {[%clk 0:02:55.3]} 6... exd5 {[%clk 0:02:50.3]} 7.
Bg2 {[%clk 0:02:54.9]} 7... Bb4+ {[%clk 0:02:49.1]} 8. Bd2 {[%clk 0:02:53.4]}
8... Bd6 {[%clk 0:02:48.6]} 9. O-O {[%clk 0:02:53]} 9... O-O {[%clk 0:02:49.3]}
10. Nc3 {[%clk 0:02:53]} 10... Re8 {[%clk 0:02:47]} 11. Ne5 {[%clk 0:02:46.1]}
11... Bb7 {[%clk 0:02:39.5]} 12. Bf4 {[%clk 0:02:39.5]} 12... Nbd7 {[%clk
0:02:35.9]} 13. Nd3 {[%clk 0:02:19.8]} 13... Ne4 {[%clk 0:02:30.1]} 14. Rc1
{[%clk 0:02:13.1]} 14... Ndf6 {[%clk 0:02:25]} 15. Bxd6 {[%clk 0:02:07.6]} 15...
Nxd6 {[%clk 0:02:25.4]} 16. Ne5 {[%clk 0:02:03.9]} 16... c6 {[%clk 0:02:15.1]}
17. e3 {[%clk 0:02:04.3]} 17... Rc8 {[%clk 0:02:14.8]} 18. h4 {[%clk 0:01:41.4]}
18... g6 {[%clk 0:02:15]} 19. Qf3 {[%clk 0:01:35.5]} 19... h5 {[%clk 0:02:14.8]}
20. Bh3 {[%clk 0:01:34.9]} 20... Rc7 {[%clk 0:02:14.7]} 21. Qf4 {[%clk
0:01:29.7]} 21... Kg7 {[%clk 0:02:14.8]} 22. Rc2 {[%clk 0:01:26.4]} 22... c5
{[%clk 0:02:09]} 23. Rfc1 {[%clk 0:01:21.8]} 23... c4 {[%clk 0:02:08.4]} 24. b4
{[%clk 0:01:09.8]} 24... Nfe4 {[%clk 0:02:03]} 25. a4 {[%clk 0:01:01.3]} 25...
Nxc3 {[%clk 0:02:01.3]} 26. Rxc3 {[%clk 0:01:02.2]} 26... f6 {[%clk 0:02:00.7]}
27. Nd3 {[%clk 0:00:47.8]} 27... g5 {[%clk 0:01:52.6]} 28. Qf3 {[%clk
0:00:40.3]} 28... Ne4 {[%clk 0:01:46]} 29. R3c2 {[%clk 0:00:37.6]} 29... g4
{[%clk 0:01:44.8]} 30. Bxg4 {[%clk 0:00:37.7]} 30... hxg4 {[%clk 0:01:45.7]} 31.
Qxg4+ {[%clk 0:00:38.4]} 31... Kh8 {[%clk 0:01:36.1]} 32. Nf4 {[%clk 0:00:38.8]}
32... Rg8 {[%clk 0:01:36.3]} 33. Qf5 {[%clk 0:00:36.7]} 33... Qd7 {[%clk
0:01:33.9]} 34. Qh5+ {[%clk 0:00:16.8]} 34... Qh7 {[%clk 0:01:33.8]} 35. Qf3
{[%clk 0:00:12.6]} 35... Qxh4 {[%clk 0:01:26]} 36. Kf1 {[%clk 0:00:13.1]} 36...
Qh2 {[%clk 0:01:25.1]} 37. Ke1 {[%clk 0:00:04.8]} 37... Rh7 {[%clk 0:01:23.2]}
38. Ne2 {[%clk 0:00:01.9]} 38... Qh1+ {[%clk 0:01:22.5]} 0-1

[Event "Late-Titled-Tuesday-Blitz-February-06-2024"]
[Site "Chess.com"]
[Date "2024.02.06"]
[Round "7"]
[White "ansko1999"]
[Black "Pawngobblerx2000"]
[Result "1-0"]
[WhiteElo "2685"]
[BlackElo "2511"]
[TimeControl "180+1"]
[EndTime "15:16:39 PST"]
[Termination "ansko1999 won by resignation"]

1. Nf3 {[%clk 0:03:00.9]} 1... d5 {[%clk 0:02:59.3]} 2. e3 {[%clk 0:03:00.3]}
2... Nf6 {[%clk 0:02:59.1]} 3. b3 {[%clk 0:03:00.2]} 3... c5 {[%clk 0:02:57.8]}
4. Bb2 {[%clk 0:03:00.4]} 4... Nc6 {[%clk 0:02:58.7]} 5. Bb5 {[%clk 0:03:00]}
5... Bd7 {[%clk 0:02:58.3]} 6. O-O {[%clk 0:02:59.6]} 6... e6 {[%clk 0:02:58.6]}
7. c4 {[%clk 0:02:56.9]} 7... Bd6 {[%clk 0:02:58.2]} 8. cxd5 {[%clk 0:02:55.4]}
8... exd5 {[%clk 0:02:57.6]} 9. d4 {[%clk 0:02:55.6]} 9... cxd4 {[%clk
0:02:56.5]} 10. Nxd4 {[%clk 0:02:54.6]} 10... O-O {[%clk 0:02:55.7]} 11. Nf3
{[%clk 0:02:46.8]} 11... a6 {[%clk 0:02:52.3]} 12. Be2 {[%clk 0:02:45.5]} 12...
Be6 {[%clk 0:02:30.3]} 13. Nbd2 {[%clk 0:02:34.1]} 13... Qe7 {[%clk 0:02:29.4]}
14. Rc1 {[%clk 0:02:32.6]} 14... Rfd8 {[%clk 0:02:29.3]} 15. Nd4 {[%clk
0:02:29.1]} 15... Bd7 {[%clk 0:02:21.7]} 16. N2f3 {[%clk 0:02:20.7]} 16... Rac8
{[%clk 0:02:20.3]} 17. Bd3 {[%clk 0:02:16.7]} 17... Bg4 {[%clk 0:02:12.4]} 18.
Nxc6 {[%clk 0:02:11.7]} 18... bxc6 {[%clk 0:02:05.6]} 19. h3 {[%clk 0:02:07.1]}
19... Bxf3 {[%clk 0:01:58.2]} 20. Qxf3 {[%clk 0:02:08]} 20... a5 {[%clk
0:01:53.5]} 21. Rc2 {[%clk 0:01:53.9]} 21... Be5 {[%clk 0:01:48.8]} 22. Bxe5
{[%clk 0:01:46]} 22... Qxe5 {[%clk 0:01:49.7]} 23. Rfc1 {[%clk 0:01:46.3]} 23...
Qd6 {[%clk 0:01:48.9]} 24. Bf5 {[%clk 0:01:36.5]} 24... Rc7 {[%clk 0:01:46.9]}
25. h4 {[%clk 0:01:34.3]} 25... g6 {[%clk 0:01:42.2]} 26. Bd3 {[%clk 0:01:33.1]}
26... h5 {[%clk 0:01:41.8]} 27. g3 {[%clk 0:01:32.5]} 27... Ra8 {[%clk
0:01:33.8]} 28. Bb5 {[%clk 0:01:29.6]} 28... Rac8 {[%clk 0:01:05.7]} 29. Ba6
{[%clk 0:01:23.7]} 29... Ra8 {[%clk 0:01:05.3]} 30. Bb5 {[%clk 0:01:23.7]} 30...
Rac8 {[%clk 0:01:02.3]} 31. Qf4 {[%clk 0:01:12.6]} 31... Qe6 {[%clk 0:00:46.1]}
32. Ba6 {[%clk 0:01:08.8]} 32... Ne4 {[%clk 0:00:37.4]} 33. Bxc8 {[%clk
0:01:03.1]} 33... Rxc8 {[%clk 0:00:38.3]} 34. Kg2 {[%clk 0:00:56.6]} 34... Nd6
{[%clk 0:00:24.4]} 35. Rxc6 {[%clk 0:00:50]} 1-0

[Event "Late-Titled-Tuesday-Blitz-February-06-2024"]
[Site "Chess.com"]
[Date "2024.02.06"]
[Round "7"]
[White "Ticondriul"]
[Black "JonasGallasch"]
[Result "1-0"]
[WhiteElo "2737"]
[BlackElo "2420"]
[TimeControl "180+1"]
[EndTime "15:16:41 PST"]
[Termination "Ticondriul won by resignation"]

1. d4 {[%clk 0:03:00.9]} 1... Nf6 {[%clk 0:02:59.8]} 2. Nf3 {[%clk 0:03:00.7]}
2... g6 {[%clk 0:03:00]} 3. e3 {[%clk 0:03:01]} 3... Bg7 {[%clk 0:03:00.4]} 4.
Be2 {[%clk 0:03:01.1]} 4... O-O {[%clk 0:03:00.6]} 5. O-O {[%clk 0:03:01.5]}
5... d5 {[%clk 0:02:56.2]} 6. c4 {[%clk 0:03:01.4]} 6... dxc4 {[%clk 0:02:37]}
7. Bxc4 {[%clk 0:03:00.8]} 7... b6 {[%clk 0:02:37.9]} 8. Nc3 {[%clk 0:02:59.8]}
8... Bb7 {[%clk 0:02:38.2]} 9. Qe2 {[%clk 0:02:52.4]} 9... Nbd7 {[%clk
0:02:33.2]} 10. e4 {[%clk 0:02:50.7]} 10... e6 {[%clk 0:02:28.8]} 11. Bf4 {[%clk
0:02:40.5]} 11... Nh5 {[%clk 0:02:20.5]} 12. Bg5 {[%clk 0:02:40.1]} 12... Bf6
{[%clk 0:02:11.6]} 13. Be3 {[%clk 0:02:31.3]} 13... e5 {[%clk 0:02:02.1]} 14.
Nd5 {[%clk 0:01:52.8]} 14... Bxd5 {[%clk 0:01:44.1]} 15. Bxd5 {[%clk 0:01:52.6]}
15... Rc8 {[%clk 0:01:44.4]} 16. dxe5 {[%clk 0:01:48.6]} 16... Nxe5 {[%clk
0:01:45]} 17. Nxe5 {[%clk 0:01:47.5]} 17... Bxe5 {[%clk 0:01:45.9]} 18. f4
{[%clk 0:01:47.5]} 18... Bg7 {[%clk 0:01:45.6]} 19. Rad1 {[%clk 0:01:45.5]}
19... Qe7 {[%clk 0:01:44.6]} 20. Qf3 {[%clk 0:01:40.9]} 20... Nf6 {[%clk
0:01:41.2]} 21. Bb7 {[%clk 0:01:34.7]} 21... Rcd8 {[%clk 0:01:38.5]} 22. e5
{[%clk 0:01:34.4]} 22... Nd7 {[%clk 0:01:34.2]} 23. Rc1 {[%clk 0:01:23]} 23...
c5 {[%clk 0:01:30.8]} 24. Rfd1 {[%clk 0:01:22.4]} 24... Nb8 {[%clk 0:01:26.8]}
25. Bd5 {[%clk 0:01:21.9]} 25... Kh8 {[%clk 0:01:25]} 26. Qe4 {[%clk 0:01:17.3]}
26... Na6 {[%clk 0:01:17.6]} 27. a3 {[%clk 0:01:11.2]} 27... Nc7 {[%clk
0:01:16.3]} 28. Ba2 {[%clk 0:01:10.3]} 28... Ne6 {[%clk 0:01:14.1]} 29. b4
{[%clk 0:01:07.4]} 29... Rxd1+ {[%clk 0:01:11.2]} 30. Rxd1 {[%clk 0:01:07.4]}
30... Rd8 {[%clk 0:01:12.1]} 31. Rd5 {[%clk 0:00:48.4]} 31... cxb4 {[%clk
0:01:01.3]} 32. axb4 {[%clk 0:00:47.3]} 32... Rc8 {[%clk 0:00:53.3]} 33. Rd6
{[%clk 0:00:44]} 33... Qc7 {[%clk 0:00:47.3]} 34. h4 {[%clk 0:00:41.4]} 34...
Qc2 {[%clk 0:00:37.9]} 35. Qxc2 {[%clk 0:00:40]} 35... Rxc2 {[%clk 0:00:38.3]}
36. Bxe6 {[%clk 0:00:40.9]} 1-0